bitfinex-derivatives/quotes_ETHF0:USTF0_20250620
["timestamp","ask_amount","ask_price","bid_price","bid_amount"]
[1750406987285,0.78013,2563.4,2563.3,3.2078]
[1750406987589,26.54913,2563.4,2563.3,3.2078]
[1750406987888,26.54913,2563.4,2563.0,4.34432164]
[1750406987889,0.78022,2563.1,2563.0,4.34432164]
[1750406988184,33.87122,2563.1,2563.0,5.12457164]
[1750406988389,33.87122,2563.1,2563.0,4.34432164]
[1750406988686,33.87122,2563.1,2563.0,3.2078]
[1750406988880,33.091,2563.1,2563.0,3.2078]
[1750406989083,35.45422,2563.1,2563.0,3.2078]
[1750406989588,34.674,2563.1,2563.0,3.98805]
[1750406989780,34.674,2563.1,2563.0,3.2078]
[1750406990082,35.45422,2563.1,2563.0,3.2078]
[1750406991086,1.95064,2563.0,2562.6,3.2078]
[1750406991285,0.78034,2562.7,2562.6,3.2078]
[1750406991480,33.87534,2562.7,2562.6,3.2078]
[1750406992291,33.87534,2562.7,2562.6,3.98817]
[1750406992584,1.5693,2562.9,2562.8,0.78031]
[1750406992785,8.8933,2562.9,2562.8,0.78031]
[1750406992991,33.094,2563.1,2563.0,0.78025]
[1750406993289,34.6633,2563.1,2563.0,0.78025]
[1750406994192,0.78025,2563.0,2562.9,3.98806]
[1750406994394,2.40785,2563.0,2562.9,3.98806]
[1750406994889,1.6276,2563.0,2562.9,3.98806]
[1750406995183,2.40785,2563.0,2562.9,3.98806]
[1750406995389,1.6276,2563.0,2562.9,3.98806]
[1750406995581,1.6276,2563.0,2562.9,3.2078]
[1750406995786,2.40785,2563.0,2562.9,3.2078]
[1750406996491,0.78028,2562.9,2562.8,0.06933781]
[1750406996689,0.78032,2562.8,2562.6,3.98815]
[1750406996991,0.78032,2562.8,2562.7,0.78034]
[1750406997192,35.44142,2562.8,2562.7,0.78034]
[1750406997392,35.44142,2562.8,2562.6,3.98815]
[1750406997695,0.78034,2562.7,2562.6,4.05748781]
[1750406997882,0.78034,2562.7,2562.6,3.27713781]
[1750406998082,2.34544,2562.7,2562.6,3.27713781]
[1750406998688,2.34544,2562.7,2562.6,3.2078]
[1750406999093,1.5651,2562.7,2562.6,3.98817]
[1750406999494,2.34544,2562.7,2562.6,3.98817]
[1750407000095,0.78029,2562.9,2562.8,0.78027]
[1750407000392,0.78034,2562.8,2562.7,0.78032]
[1750407000689,3.51466,2563.1,2562.8,0.78031]
[1750407000690,1.5641,2563.1,2562.8,0.78031]
[1750407000886,7.326,2563.0,2562.9,3.98808]
[1750407001081,2.3216,2563.2,2562.9,3.98808]
[1750407001082,7.326,2563.4,2563.3,0.78016]
[1750407001278,0.77999,2563.9,2563.8,0.78]
[1750407001496,10.5338,2564.1,2564.0,0.77994]
[1750407001690,7.326,2564.1,2564.0,3.98774]
[1750407001882,1.5641,2564.4,2564.3,0.77985]
[1750407002197,33.094,2564.4,2564.3,3.98765]
[1750407002692,34.7229,2564.4,2564.3,3.98765]
[1750407002893,35.50272,2564.4,2564.3,3.98765]
[1750407003086,1.6289,2564.4,2564.3,3.98765]
[1750407003287,35.49872,2564.4,2564.3,3.98765]
[1750407003686,35.49872,2564.4,2564.3,3.2078]
[1750407003894,35.49672,2564.4,2564.3,3.98765]
[1750407004092,34.7169,2564.4,2564.3,3.98765]
[1750407004289,1.6289,2564.4,2564.3,3.98765]
[1750407004797,2.40872,2564.4,2564.3,3.2078]
[1750407005498,3.57848,2564.4,2564.0,3.2078]
[1750407005789,3.57848,2564.4,2563.7,3.1793]
[1750407005790,3.9878,2563.8,2563.7,3.1793]
[1750407005994,36.2788,2563.8,2563.0,0.78023]
[1750407006293,0.78021,2563.2,2562.9,3.2078]
[1750407006499,33.068,2563.1,2563.0,0.78025]
[1750407007000,34.6643,2563.1,2563.0,0.78025]
[1750407008998,3.2078,2563.4,2563.1,0.7802]
[1750407009196,0.7802,2563.2,2562.9,3.98806]
[1750407009397,1.5989,2563.1,2562.9,3.2078]
[1750407009604,26.53725,2563.0,2562.9,3.2078]
[1750407009794,25.757,2563.0,2562.9,3.2078]
[1750407009994,25.757,2563.0,2562.9,3.98808]
[1750407010297,3.98795,2563.4,2563.2,0.78018]
[1750407010491,33.066,2563.3,2563.2,0.78018]
[1750407010691,8.9099,2563.3,2563.2,0.78018]
[1750407010891,0.7802,2563.2,2563.1,0.78021]
[1750407011088,34.6649,2563.3,2562.9,3.98806]
[1750407011392,0.78025,2563.0,2562.9,3.2078]
[1750407011587,26.53425,2563.0,2562.9,3.2078]
[1750407012098,25.754,2563.0,2562.9,3.2078]
[1750407012300,25.754,2563.0,2562.9,3.98808]
[1750407012500,26.53425,2563.0,2562.9,3.2078]
[1750407012699,28.14685,2563.0,2562.9,3.98808]
[1750407012999,28.14685,2563.0,2562.9,3.2078]
[1750407013197,28.14685,2563.0,2562.9,3.98808]
[1750407013594,27.3666,2563.0,2562.9,3.98808]
[1750407013901,33.065,2563.0,2562.9,3.98808]
[1750407014194,0.78024,2563.1,2562.9,3.98808]
[1750407014399,7.312,2563.2,2562.9,12.60999224]
[1750407014594,33.062,2563.2,2563.1,0.78022]
[1750407014997,0.7801,2563.6,2563.5,0.78007]
[1750407015304,77.998,2563.7,2563.5,0.78008]
[1750407015496,0.7801,2563.6,2563.5,0.78008]
[1750407016195,79.6499,2563.7,2563.3,3.2078]
[1750407016196,79.6499,2563.7,2563.6,0.78007]
[1750407016400,78.77704,2563.7,2563.6,0.78007]
[1750407016898,78.77705,2563.7,2563.6,0.78007]
[1750407017099,80.42995,2563.7,2563.6,0.78007]
[1750407017702,0.78008,2563.6,2563.5,0.78008]
[1750407017895,1.5945,2563.6,2563.5,0.78008]
[1750407018301,2.37457,2563.6,2563.5,0.78008]
[1750407018501,0.78011,2563.5,2563.4,0.78011]
[1750407018704,1.5945,2563.5,2563.4,0.78011]
[1750407019098,0.78013,2563.4,2563.3,3.98793]
[1750407019295,25.744,2563.4,2563.3,3.98793]
[1750407019703,27.3385,2563.4,2563.3,3.98793]
[1750407020699,28.11863,2563.4,2563.3,3.98793]
[1750407021000,27.3385,2563.4,2563.3,3.98793]
[1750407021408,28.11863,2563.4,2563.3,3.98793]
[1750407022002,28.11863,2563.4,2563.3,3.98796]
[1750407022209,27.3385,2563.4,2563.3,3.98796]
[1750407022908,1.5945,2563.4,2563.3,3.98796]
[1750407023215,47.31894,2563.7,2563.6,0.06933781]
[1750407023515,80.36694,2563.7,2563.6,0.06933781]
[1750407024594,48.83834,2563.7,2563.6,0.06933781]
[1750407024799,81.88334,2563.7,2563.6,0.06933781]
[1750407025706,81.88334,2563.7,2563.6,0.84940781]
[1750407026602,48.83834,2563.7,2563.6,0.84940781]
[1750407026807,81.88334,2563.7,2563.6,0.06933781]
[1750407027206,81.88334,2563.7,2563.6,0.84940781]
[1750407027505,78.75604,2563.7,2563.6,0.06933781]
[1750407027702,82.03744,2563.7,2563.6,0.06933781]
[1750407028802,56.30744,2563.7,2563.6,0.06933781]
[1750407029007,82.03544,2563.7,2563.6,0.06933781]
[1750407029498,82.03344,2563.7,2563.6,0.06933781]
[1750407031413,82.02944,2563.7,2563.6,0.84940781]
[1750407031604,82.02944,2563.7,2563.6,0.06933781]
[1750407031909,56.30744,2563.7,2563.6,0.84940781]
[1750407032102,82.02844,2563.7,2563.6,0.84940781]
[1750407033209,77.963,2563.7,2563.6,0.84940781]
[1750407033898,45.71504,2563.7,2563.6,0.84940781]
[1750407034104,52.246,2563.7,2563.6,0.84940781]
[1750407034311,77.961,2563.7,2563.6,0.78007]
[1750407034805,78.74104,2563.7,2563.6,0.78007]
[1750407036210,0.78007,2563.6,2563.5,1.14248961]
[1750407037307,78.74106,2563.7,2563.5,1.14248961]
[1750407037510,0.92,2563.8,2563.7,0.78004]
[1750407037703,26.628,2563.8,2563.7,1.92252961]
[1750407038012,26.627,2563.8,2563.7,0.78004]
[1750407038605,0.92,2563.8,2563.7,2.29231037]
[1750407038806,0.92,2563.8,2563.7,5.50011037]
[1750407039011,0.92,2563.8,2563.7,6.26783193]
[1750407039204,0.92,2563.8,2563.7,3.98784]
[1750407039609,0.92,2563.8,2563.7,12.28184]
[1750407040311,0.7799,2564.2,2564.1,0.77988]
[1750407040509,0.7799,2564.2,2564.1,2.3044088]
[1750407040711,26.4799,2564.2,2564.1,1.5245288]
[1750407041212,0.77991,2564.1,2564.0,1.5245288]
[1750407041718,26.4799,2564.2,2564.1,0.77991]
[1750407041914,26.4789,2564.2,2564.1,0.77991]
[1750407042115,74.62263,2564.5,2564.4,0.77982]
[1750407042416,73.8428,2564.5,2564.4,0.77982]
[1750407042914,76.34129,2564.5,2564.4,0.77982]
[1750407043715,73.8418,2564.5,2564.4,0.77982]
[1750407043906,48.1488,2564.5,2564.4,0.77982]
[1750407044111,1.6353,2564.8,2564.7,0.77973]
[1750407044421,7.273,2564.8,2564.7,0.77973]
[1750407044612,32.963,2564.8,2564.7,0.77973]
[1750407044812,7.273,2564.8,2564.7,0.77973]
[1750407045008,32.962,2564.8,2564.7,0.77973]
[1750407046011,3.2078,2564.9,2564.8,0.7797]
[1750407046216,28.8908,2565.3,2565.2,0.77958]
[1750407046416,0.77967,2564.9,2564.8,1.13985944]
[1750407046617,0.7797,2564.8,2564.7,1.91957944]
[1750407046920,2.3844,2564.8,2564.6,1.91959944]
[1750407047217,25.682,2564.7,2564.6,1.91959944]
[1750407048212,25.682,2564.7,2564.6,0.77974]
[1750407048817,0.77976,2564.6,2564.5,1.91963944]
[1750407049016,1.6899,2564.6,2564.5,1.91964944]
[1750407049218,2.46966,2564.6,2564.5,0.77979]
[1750407049412,1.6899,2564.6,2564.5,0.77979]
[1750407049816,1.6899,2564.6,2564.5,1.91964944]
[1750407050017,32.944,2564.6,2564.5,1.91964944]
[1750407050218,32.944,2564.6,2564.5,0.77979]
[1750407050812,2.46962,2564.8,2564.7,0.77973]
[1750407051027,35.41262,2564.8,2564.7,0.77973]
[1750407052925,35.40862,2564.8,2564.7,0.77973]
[1750407054322,0.77978,2564.7,2564.6,0.77974]
[1750407054521,0.77979,2564.6,2564.4,3.2078]
[1750407057026,36.74992543,2564.5,2564.4,3.2078]
[1750407057627,36.74992543,2564.5,2564.4,3.98762]
[1750407057826,35.97013543,2564.5,2564.4,3.98762]
[1750407058023,1.6694,2564.6,2564.5,0.77979]
[1750407058218,34.5914,2564.6,2564.5,0.77979]
[1750407059026,0.77979,2564.5,2564.4,3.2078]
[1750407059326,2.51089,2564.5,2564.4,3.2078]
[1750407060227,2.51089,2564.5,2564.4,3.98762]
[1750407060719,1.7311,2564.5,2564.4,3.98762]
[1750407060921,27.3761,2564.5,2564.4,3.98762]
[1750407061216,27.3751,2564.5,2564.4,3.98762]
[1750407062126,34.6461,2564.5,2564.4,3.98762]
[1750407062327,35.42589,2564.5,2564.4,3.98762]
[1750407062630,37.68723543,2564.5,2564.2,1.13985944]
[1750407062818,4.99081543,2564.3,2563.9,1.13985944]
[1750407063020,4.8207,2564.4,2563.8,3.2078]
[1750407063021,0.77997,2563.9,2563.8,3.2078]
[1750407063222,33.68997,2563.9,2563.8,3.2078]
[1750407063421,37.09117,2563.9,2563.8,3.2078]
[1750407063835,37.09117,2563.9,2563.8,3.9878]
[1750407064221,4.18117,2563.9,2563.8,3.9878]
[1750407064520,37.08817,2563.9,2563.8,3.9878]
[1750407066229,37.08817,2563.9,2563.8,3.2078]
[1750407066927,40.12930543,2563.9,2563.8,3.2078]
[1750407067132,0.78,2563.8,2563.7,1.13985944]
[1750407067432,1.95017,2563.6,2563.2,4.34765944]
[1750407067624,4.99154543,2563.3,2563.0,1.13985944]
[1750407067821,3.82135543,2563.1,2563.0,1.13985944]
[1750407068027,0.78025,2563.0,2562.9,1.13985944]
[1750407068325,0.78028,2562.9,2562.8,3.2078]
[1750407068528,3.82141543,2562.9,2562.8,3.2078]
[1750407068722,5.61051543,2562.9,2562.8,3.2078]
[1750407068934,35.46938,2562.9,2562.8,3.2078]
[1750407070629,34.6891,2562.9,2562.8,3.98811]
[1750407070934,35.42938,2562.9,2562.8,3.2078]
[1750407071730,7.23,2562.9,2562.8,3.98811]
[1750407072027,33.63528,2562.9,2562.8,3.2078]
[1750407072225,35.28738,2562.9,2562.8,3.2078]
[1750407072424,0.78037,2562.6,2562.4,3.98821]
[1750407072628,2.555,2562.5,2562.4,3.98823]
[1750407072829,35.41,2562.5,2562.4,3.2078]
[1750407073545,0.78055,2562.1,2562.0,3.2078]
[1750407073828,33.63455,2562.1,2562.0,3.2078]
[1750407074133,33.63455,2562.1,2562.0,3.98835]
[1750407074330,33.63455,2562.1,2562.0,3.2078]
[1750407074527,32.854,2562.1,2562.0,3.98835]
[1750407074730,7.231,2562.1,2562.0,3.98835]
[1750407074921,32.852,2562.1,2562.0,3.98835]
[1750407075630,7.231,2562.1,2562.0,3.98835]
[1750407076341,7.232,2562.1,2562.0,3.98835]
[1750407078027,8.01252,2562.1,2562.0,3.98835]
[1750407078333,9.65512,2562.1,2562.0,3.98835]
[1750407078634,9.65512,2562.1,2562.0,3.2078]
[1750407079032,11.34032,2562.1,2562.0,3.98835]
[1750407079233,11.34032,2562.1,2562.0,3.2078]
[1750407080233,13.11462,2562.1,2562.0,4.05768781]
[1750407080434,12.3341,2562.1,2562.0,0.84988781]
[1750407080637,13.11462,2562.1,2562.0,0.84988781]
[1750407080831,13.11462,2562.1,2562.0,0.06933781]
[1750407081336,13.11462,2562.1,2562.0,0.84988781]
[1750407081534,13.11462,2562.1,2562.0,0.06933781]
[1750407081837,13.11462,2562.1,2562.0,0.84988781]
[1750407082231,3.2078,2562.8,2562.0,9.61118345]
[1750407082433,36.0518,2562.8,2562.3,3.2078]
[1750407082635,0.78038,2562.6,2562.5,0.78039]
[1750407082847,2.42806,2562.7,2562.5,0.78039]
[1750407083032,25.608,2562.6,2562.5,0.78039]
[1750407083231,3.2078,2562.8,2562.7,0.78034]
[1750407083540,36.0488,2562.8,2562.7,0.78034]
[1750407084035,3.98787,2563.6,2563.5,0.78008]
[1750407084235,10.4418,2563.6,2563.5,0.78008]
[1750407084437,32.838,2563.7,2563.3,3.2078]
[1750407084742,7.234,2563.7,2563.6,0.78007]
[1750407084938,32.838,2563.7,2563.6,0.78007]
[1750407085834,32.836,2563.7,2563.6,0.78007]
[1750407086035,32.836,2563.7,2563.4,1.7624]
[1750407086036,52.189,2563.8,2563.7,0.78004]
[1750407086229,7.234,2563.8,2563.7,0.78004]
[1750407088535,8.014,2563.8,2563.7,0.78004]
[1750407088734,8.01402,2563.8,2563.6,3.98785]
[1750407089043,9.6685,2563.8,2563.7,0.78004]
[1750407089238,8.8885,2563.8,2563.4,1.7624]
[1750407089433,8.8885,2563.8,2563.3,3.2078]
[1750407089434,0.78013,2563.4,2563.3,3.98796]
[1750407089740,32.821,2563.4,2563.3,3.98796]
[1750407090239,33.60113,2563.4,2563.3,3.2078]
[1750407090636,33.60113,2563.4,2563.3,3.98796]
[1750407090836,33.60113,2563.4,2563.3,3.2078]
[1750407091036,0.78025,2563.0,2562.8,4.8598]
[1750407091236,32.813,2563.0,2562.9,0.78028]
[1750407091441,33.59325,2563.0,2562.9,0.78028]
[1750407091646,34.4305,2563.0,2562.9,0.78028]
[1750407091939,2.32630912,2564.7,2563.3,3.90069]
[1750407092132,3.3717,2564.9,2564.8,0.7797]
[1750407092335,0.77953,2565.4,2564.7,8.28338564]
[1750407092641,27.1955,2565.4,2564.9,3.2078]
[1750407092846,0.77955,2565.3,2565.0,0.77963]
[1750407093048,2.39709,2565.2,2564.9,3.98746]
[1750407093343,1.6175,2565.2,2565.0,0.77963]
[1750407093736,1.6175,2565.2,2565.1,0.77961]
[1750407094036,3.2078,2565.5,2564.9,5.15697]
[1750407094242,36.0148,2565.5,2565.4,0.77952]
[1750407094437,10.4398,2565.5,2565.4,0.77952]
[1750407094944,3.2078,2565.5,2565.4,0.77952]
[1750407096141,7.232,2565.8,2565.7,0.77943]
[1750407096448,5.65328,2566.2,2565.6,6.33404564]
[1750407096635,0.85724928,2566.1,2565.8,0.77939]
[1750407096834,7.23,2566.5,2566.0,0.77934]
[1750407097330,0.77925,2566.3,2566.0,0.77934]
[1750407097534,2.44018,2566.2,2565.9,0.77935]
[1750407097940,0.77935,2566.0,2565.8,3.2078]
[1750407098133,0.77937,2565.9,2565.8,3.2078]
[1750407098337,0.77937,2565.9,2565.4,0.77949]
[1750407098338,3.2078,2565.9,2565.4,0.77949]
[1750407098533,2.44032,2565.8,2565.4,0.77949]
[1750407098742,0.77943,2565.7,2565.4,0.77949]
[1750407098946,1.6609,2565.7,2565.3,3.2078]
[1750407099345,1.6609,2565.7,2565.5,0.77949]
[1750407099346,2.44033,2565.7,2565.5,0.77949]
[1750407099549,2.44033,2565.7,2565.4,0.7795]
[1750407099842,2.44034,2565.7,2565.5,0.77949]
[1750407100049,2.44034,2565.7,2565.6,3.2078]
[1750407100252,2.44034,2565.7,2565.0,3.4137]
[1750407100253,0.7795,2565.5,2565.3,3.2078]
[1750407100441,0.77947,2565.6,2565.4,0.7795]
[1750407100642,15.22294564,2565.7,2565.3,3.2078]
[1750407100954,15.22294564,2565.7,2564.7,8.28336564]
[1750407100955,0.77972,2564.8,2564.7,3.2078]
[1750407101148,0.77968,2564.9,2564.7,3.2078]
[1750407101345,0.77968,2564.9,2564.7,3.98751]
[1750407101546,1.7769,2564.9,2564.7,3.2078]
[1750407102246,1.7769,2564.9,2564.8,0.7797]
[1750407103451,2.55657,2564.9,2564.8,0.7797]
[1750407104451,1.7769,2564.9,2564.8,0.7797]
[1750407106751,2.48186,2565.3,2564.7,5.15708]
[1750407107059,0.77962,2565.1,2565.0,0.77961]
[1750407107241,7.9676,2565.2,2565.1,0.77961]
[1750407108348,2.48186,2565.3,2565.2,0.77958]
[1750407108548,9.66986,2565.3,2565.2,0.77958]
[1750407110251,8.8903,2565.3,2565.2,0.77958]
[1750407111149,9.66985,2565.3,2565.2,0.77958]
[1750407111853,2.48185,2565.3,2565.2,0.77958]
[1750407112158,35.20685,2565.3,2565.2,0.77958]
[1750407112364,0.77959,2565.2,2565.1,0.77959]
[1750407112661,0.77963,2565.1,2565.0,0.77963]
[1750407113052,0.7796,2565.2,2565.1,0.7796]
[1750407113954,40.76134564,2565.3,2565.2,0.77958]
[1750407113955,1.7023,2565.3,2565.2,0.77958]
[1750407114157,7.188,2565.5,2565.1,5.15683]
[1750407114361,0.77954,2565.4,2565.3,0.77953]
[1750407115656,8.9514,2565.5,2565.2,0.77956]
[1750407115657,0.77958,2565.3,2565.2,0.77956]
[1750407116362,0.77953,2565.4,2565.3,0.77952]
[1750407117054,0.77956,2565.3,2565.2,0.77955]
[1750407117650,0.77953,2565.4,2565.3,0.77953]
[1750407117954,0.77953,2565.4,2565.3,0.77955]
[1750407118159,8.9514,2565.5,2565.2,0.77956]
[1750407118160,0.77956,2565.3,2565.2,0.77956]
[1750407118460,8.9514,2565.5,2565.1,3.2078]
[1750407118758,0.77958,2565.2,2565.1,3.2078]
[1750407119168,0.77958,2565.2,2565.1,3.98741]
[1750407119864,0.77958,2565.2,2565.1,3.2078]
[1750407120064,0.77958,2565.2,2565.1,3.98741]
[1750407120258,0.77957,2565.3,2565.2,0.77957]
[1750407120457,0.77956,2565.3,2565.2,0.77956]
[1750407120761,26.30053,2565.4,2565.3,0.77955]
[1750407121067,25.521,2565.4,2565.3,0.77955]
[1750407121258,26.30052,2565.4,2565.3,0.77955]
[1750407121951,1.7634,2565.5,2565.4,0.77952]
[1750407122155,8.9504,2565.5,2565.4,0.77952]
[1750407122552,8.9504,2565.5,2565.2,1.13639158]
[1750407122553,0.77955,2565.3,2565.2,1.13639158]
[1750407122764,35.83739564,2565.3,2565.2,1.13639158]
[1750407123062,0.77961,2565.1,2565.0,1.91603158]
[1750407123258,1.6245,2565.2,2565.1,0.77961]
[1750407123461,1.6245,2565.2,2565.1,1.92123045]
[1750407123767,7.187,2565.2,2565.1,3.98741]
[1750407124265,0.77954,2565.4,2565.1,3.2078]
[1750407124470,7.96649,2565.5,2565.4,0.77952]
[1750407125362,7.187,2565.5,2565.4,0.77952]
[1750407125669,8.88649,2565.5,2565.4,0.77952]
[1750407125969,8.88649,2565.5,2565.3,1.99025761]
[1750407125970,0.77952,2565.4,2565.3,1.99025761]
[1750407126463,2.44862,2565.4,2565.3,1.21070761]
[1750407126658,8.78266564,2565.4,2565.3,0.06933781]
[1750407128372,8.78266564,2565.4,2565.3,1.21070761]
[1750407128676,8.78266564,2565.4,2565.3,0.06933781]
[1750407129164,8.78266564,2565.4,2565.3,1.21070761]
[1750407129765,8.78266564,2565.4,2565.0,2.2867932]
[1750407129766,14.95198564,2565.4,2565.0,1.51548677]
[1750407129966,1.94922,2564.9,2564.5,5.4945932]
[1750407130160,1.9495,2564.5,2564.3,2.28785816]
[1750407130365,36.33388,2564.4,2564.0,0.77994]
[1750407130572,0.77997,2563.9,2563.8,3.2078]
[1750407130769,0.78,2563.8,2563.7,3.03363397]
[1750407130969,0.78,2563.8,2563.5,3.2078]
[1750407130970,10.3948,2564.0,2563.5,8.19164397]
[1750407131168,11.17476,2564.0,2563.5,5.15801]
[1750407131369,12.94956,2564.0,2563.8,0.77998]
[1750407131569,12.94956,2564.0,2563.9,0.77997]
[1750407131768,8.9618,2564.0,2563.9,0.77997]
[1750407132074,10.3648,2564.3,2564.2,0.77988]
[1750407132467,11.14465,2564.3,2564.2,0.77988]
[1750407132667,10.3648,2564.3,2564.2,0.77988]
[1750407132868,11.14465,2564.3,2564.2,0.77988]
[1750407133169,0.77988,2564.2,2564.0,0.77993]
[1750407133375,1.7748,2564.2,2564.1,0.77991]
[1750407133773,32.655,2564.3,2564.1,0.77989]
[1750407133970,35.8628,2564.3,2564.0,0.77993]
[1750407134174,0.77991,2564.2,2564.1,0.77991]
[1750407134469,0.77994,2564.0,2563.9,2.50545]
[1750407134675,0.77991,2564.1,2563.6,1.95017]
[1750407134875,3.2078,2564.3,2564.1,0.77991]
[1750407135077,0.77991,2564.1,2564.0,0.77992]
[1750407135277,35.1569,2564.2,2564.1,0.77991]
[1750407135777,3.2078,2564.3,2563.8,1.95]
[1750407135969,11.14566,2564.3,2564.2,0.77988]
[1750407136573,10.3658,2564.3,2564.2,0.77988]
[1750407137273,11.14565,2564.3,2564.2,0.77988]
[1750407137471,10.3658,2564.3,2564.0,1.7575]
[1750407137772,10.3658,2564.3,2564.2,0.77988]
[1750407138075,11.14565,2564.3,2564.2,0.77988]
[1750407139075,10.3658,2564.3,2564.2,0.77988]
[1750407139472,11.14565,2564.3,2564.2,0.77988]
[1750407139673,10.3658,2564.3,2564.2,0.77988]
[1750407139973,11.14565,2564.3,2564.2,0.77988]
[1750407140175,11.14565,2564.3,2564.2,0.84921781]
[1750407140481,12.144,2564.3,2564.2,0.84921781]
[1750407140680,12.92385,2564.3,2564.2,0.84921781]
[1750407141184,12.92385,2564.3,2564.2,0.06933781]
[1750407141576,12.144,2564.3,2564.2,0.84921781]
[1750407141776,38.40885,2564.3,2564.2,0.84921781]
[1750407142280,1.94893,2565.3,2564.2,0.06933781]
[1750407142485,1.94893,2565.3,2564.9,0.77966]
[1750407142486,0.77967,2565.0,2564.9,0.77966]
[1750407142778,0.77967,2565.0,2564.9,0.77967]
[1750407143577,0.7797,2564.8,2564.5,3.2078]
[1750407143777,32.641,2564.8,2564.7,0.77973]
[1750407146278,0.77976,2564.6,2564.5,3.98758]
[1750407146785,0.77976,2564.6,2564.5,0.77978]
[1750407148084,0.77984,2564.4,2564.3,0.77982]
[1750407148476,0.77985,2564.3,2564.2,3.27713781]
[1750407148786,27.86555,2564.3,2564.2,3.27713781]
[1750407149094,29.53395,2564.3,2564.2,3.27713781]
[1750407149390,0.77982,2564.5,2564.4,0.77981]
[1750407149586,33.40782,2564.5,2564.4,0.77981]
[1750407149981,0.77985,2564.3,2564.2,4.05700781]
[1750407150181,26.24885,2564.3,2564.2,4.05700781]
[1750407150382,25.469,2564.3,2564.2,4.05700781]
[1750407150582,26.24885,2564.3,2564.2,3.27713781]
[1750407150784,26.24885,2564.3,2564.2,4.05701781]
[1750407151087,26.24885,2564.3,2564.2,3.27713781]
[1750407151483,26.24885,2564.3,2564.2,0.06933781]
[1750407153087,33.40385,2564.3,2564.2,0.06933781]
[1750407153392,33.40385,2564.3,2564.2,0.84921781]
[1750407154192,33.40385,2564.3,2564.2,0.06933781]
[1750407155284,0.77994,2564.0,2563.9,3.2078]
[1750407155488,26.23994,2564.0,2563.9,3.98777]
[1750407155685,26.23994,2564.0,2563.9,3.2078]
[1750407155989,26.23994,2564.0,2563.3,3.59634]
[1750407155990,0.78004,2563.7,2563.6,3.98785]
[1750407156194,33.39904,2563.7,2563.6,3.2078]
[1750407156690,32.619,2563.7,2563.6,3.98787]
[1750407156890,3.3887,2563.9,2563.8,0.78]
[1750407157195,0.78004,2563.7,2563.6,3.2078]
[1750407157388,26.23704,2563.7,2563.6,3.2078]
[1750407159895,0.78013,2563.4,2563.3,5.51169015]
[1750407160093,32.612,2563.4,2563.3,5.51169015]
[1750407161193,33.39213,2563.4,2563.3,5.51169015]
[1750407161495,33.39213,2563.4,2563.3,5.51171015]
[1750407161697,33.39213,2563.4,2563.3,3.98796]
[1750407164090,32.612,2563.4,2563.3,3.98796]
[1750407164701,33.39213,2563.4,2563.3,3.98796]
[1750407165392,33.39213,2563.4,2563.3,0.78016]
[1750407165599,33.39213,2563.4,2563.3,3.98796]
[1750407166093,33.39213,2563.4,2563.3,0.78016]
[1750407166288,33.39213,2563.4,2563.3,3.98796]
[1750407166484,33.39213,2563.4,2563.3,0.78016]
[1750407166692,33.39213,2563.4,2563.3,3.98796]
[1750407166894,0.78013,2563.4,2563.3,0.78016]
[1750407167297,33.34413,2563.4,2563.3,0.78016]
[1750407167693,33.34413,2563.4,2563.3,3.98796]
[1750407168204,0.78013,2563.4,2563.3,3.98796]
[1750407168403,7.124,2563.4,2563.3,3.98796]
[1750407168703,32.563,2563.4,2563.3,3.98796]
[1750407168889,32.563,2563.4,2563.3,0.78016]
[1750407168890,33.34313,2563.4,2563.3,0.78016]
[1750407169295,0.78022,2563.2,2563.1,0.78017]
[1750407169491,26.21722,2563.2,2563.1,0.78017]
[1750407169789,25.437,2563.2,2563.1,0.78017]
[1750407171297,7.124,2563.4,2563.3,0.78016]
[1750407171512,0.78011,2563.6,2563.5,0.78006]
[1750407171692,33.33811,2563.6,2563.5,0.78006]
[1750407171892,0.78006,2563.7,2563.6,0.78004]
[1750407172099,32.556,2563.7,2563.6,3.98787]
[1750407172399,52.83803,2563.8,2563.7,0.78004]
[1750407172600,0.78004,2563.7,2563.6,3.98785]
[1750407172901,0.77999,2563.9,2563.8,0.78]
[1750407173092,7.125,2564.2,2563.7,1.95006]
[1750407173393,26.20894,2564.1,2564.0,0.77991]
[1750407173988,25.429,2564.1,2564.0,0.77991]
[1750407174192,0.77997,2564.0,2563.9,0.77995]
[1750407174893,26.20497,2564.0,2563.9,0.77995]
[1750407175699,25.425,2564.0,2563.6,3.2078]
[1750407176000,0.78001,2563.9,2563.8,0.77998]
[1750407176303,26.20201,2563.9,2563.8,0.77998]
[1750407176500,26.20197,2563.9,2563.8,0.77998]
[1750407177807,0.77991,2564.2,2563.7,1.95008]
[1750407178105,25.42,2564.1,2564.0,0.77991]
[1750407178501,0.77999,2564.0,2563.9,0.77995]
[1750407179004,0.77994,2564.0,2563.9,0.77995]
[1750407180408,0.77966,2565.0,2564.9,0.77963]
[1750407180700,0.77966,2565.0,2563.9,21.66584564]
[1750407180701,26.18963,2565.1,2565.0,0.77964]
[1750407181005,0.77964,2565.0,2564.9,0.77964]
[1750407181209,7.124,2565.0,2564.9,0.77964]
[1750407181508,32.533,2565.0,2564.9,0.77964]
[1750407181708,1.7491,2565.1,2565.0,0.77964]
[1750407181908,34.2811,2565.1,2565.0,0.77964]
[1750407182809,1.7491,2565.1,2565.0,0.77964]
[1750407183112,35.05671,2565.1,2565.0,0.77964]